Cogmind - Beta 17 @@@ ROGUE MODE // 2026.08.11 @ 23:22:13 Player: C0-RV5 Result: Destroyed by GX-KYV(E) with Gauss Rifle Performance ------------- Evolutions (0) 0 Regions Visited (5) 1000 Robots Destroyed (19) 95 Value Destroyed (259) 259 Prototype IDs (6) 120 Alien Tech Used (0) 0 Bonus (800) 800 TOTAL SCORE: 2274 Bonus ------- Registered with UFD 300 Met Optimus in HQ 500 Cogmind --------- Core Integrity 0/250 Matter 300/300 Energy 86/100 System Corruption 0% Temperature Cool (0) Movement Flying (37) Location -8/Scraptown Parts ------- > --- POWER (1) -------- (None) > --- PROPULSION (2) --- Flight Unit Flight Unit > --- UTILITY (2) ------ Small Storage Unit Improved Terrain Scanner > --- WEAPON (2) ------- Mini Grenade Launcher > --- INVENTORY (8) ---- Flight Unit Flightbrick DRS Beacon (Ready) Botcube Peak State ------------ > --- POWER ------------ Improved Ion Engine > --- PROPULSION ------- Flight Unit Flight Unit > --- UTILITY ---------- Small Storage Unit Improved Terrain Scanner > --- WEAPON ----------- Mini Grenade Launcher Mini Grenade Launcher > --- INVENTORY -------- Flight Unit Flight Unit Flight Unit Flightbrick Scythe [Rating: 16] Favorites ----------- Power Light Ion Engine Engine Light Ion Engine Power Core Nuclear Core Propulsion Improved Aluminum Leg Leg Improved Aluminum Leg Wheel Wheel Flight Unit Flight Unit Utility Small Storage Unit Device Improved Terrain Scanner Storage Small Storage Unit Protection Light Armor Plating Weapon Assault Rifle Energy Cannon Subdweller Beam Cannon Ballistic Gun Assault Rifle Launcher Mini Grenade Launcher Special Weapon Mining Laser Build | -11 -10 -10 -10 -8 -8 ------- Run | Yrd Mat Min Sub Rec Scr Slots Evolved . | . . . . . . Power . | . . . . . . Propulsion . | . . . . . . Utility . | . . . . . . Weapon . | . . . . . . Parts Attached 26 | 6 2 6 7 1 4 Power 5 | 1 . 1 1 . 2 Engine 4 | 1 . 1 1 . 1 Core 1 | . . . . . 1 Reactor . | . . . . . . Propulsion 10 | 2 2 . 5 . 1 Treads . | . . . . . . Leg 3 | . 2 . 1 . . Wheel 2 | 2 . . . . . Hover . | . . . . . . Flight 5 | . . . 4 . 1 Utility 3 | 1 . 2 . . . Device 1 | . . 1 . . . Storage 1 | 1 . . . . . Processor . | . . . . . . Hackware . | . . . . . . Protection 1 | . . 1 . . . Artifact . | . . . . . . Weapon 8 | 2 . 3 1 1 1 Energy Gun . | . . . . . . Energy Cannon 1 | . . . 1 . . Ballistic Gun 4 | 2 . 2 . . . Ballistic Cannon . | . . . . . . Launcher 2 | . . . . 1 1 Special Weapon 1 | . . 1 . . . Impact Weapon . | . . . . . . Slashing Weapon . | . . . . . . Piercing Weapon . | . . . . . . Special Melee Weapon . | . . . . . . Unidentified Prototypes . | . . . . . . Parts Lost 9 | . . 1 8 . . Power 2 | . . . 2 . . Propulsion 3 | . . . 3 . . Utility 1 | . . 1 . . . Weapon 3 | . . . 3 . . Highest Loss Streak 4 | . . 1 4 . . To Critical Strikes . | . . . . . . Average Backups 6 | 3 4 7 7 5 4 Power . | . 1 1 . . . Propulsion 4 | 1 2 5 5 4 3 Utility . | . . . . . . Weapon . | . 1 1 . 1 . Tool/Special . | . . . . . . Unused Backups 8 | . 2 1 . 1 4 Power . | . . . . . . Propulsion 5 | . 2 1 . . 2 Utility . | . . . . . . Weapon 3 | . . . . 1 2 Tool/Special . | . . . . . . Average Slot Usage (%) 86 | . 85 96 88 64 82 Engine 8 | . 14 14 10 . . Leg 16 | . 25 28 20 . . Flight 11 | . . . 5 28 28 Device 8 | . . . 14 14 14 Storage 14 | . 14 14 14 14 14 Protection 3 | . . 9 . . . Ballistic Gun 14 | . 28 27 11 . . Launcher 6 | . . . . 7 24 Special Weapon 2 | . . . 8 . . Peak Build Rating 16 | 6 8 14 15 12 16 Average Rating 11 | 5 7 10 12 11 13 On Entrance 8 | . 6 8 14 10 12 Avg Prop Armor Cover (%) . | . . . . . . Naked Turns . | . . . . . . Heaviest Build 19 | 11 11 15 19 7 8 Greatest Support 26 | 20 26 26 26 8 8 Greatest Overweight (x) 3 | . . 3 1 . . Average Overweight (x) . | . . . . . . Largest Inventory Capacity 8 | 8 8 8 8 8 8 Average Capacity 7 | 7 8 8 8 8 8 Most Carried 8 | 4 4 8 8 8 8 Average Carried 7 | 3 3 7 7 7 7 Final Capacity 8 | 8 8 8 8 8 8 Final Carried 8 | 4 4 8 8 8 7 Class Distribution -------------------- 100% | Mutant Dominant Class ---------------- Mutant | -10/Materials Mutant | -10/Mines Mutant | -10/Subcaves Mutant | -8/Recycling Mutant | -8/Scraptown Resources | -11 -10 -10 -10 -8 -8 ----------- Run | Yrd Mat Min Sub Rec Scr Matter Collected 725 | 197 40 302 126 10 50 Remotely . | . . . . . . Salvage Created 455 | . 40 267 148 . . Parts 33 | . 4 19 10 . . Haulers Intercepted . | . . . . . . Recyclers Shooed 1 | . 1 . . . . Parts Field Recycled . | . . . . . . Retrieved Matter . | . . . . . . Parts Self-Destructed 12 | . . . 12 . . Prevented . | . . . . . . Parts Restored . | . . . . . . Kills | -11 -10 -10 -10 -8 -8 ------- Run | Yrd Mat Min Sub Rec Scr Combat Hostiles Destroyed 17 | . 1 10 6 . . Guns 14 | . 1 10 3 . . Cannons 2 | . . . 2 . . Classes Destroyed 4 | . 1 2 1 . . Tunneler 2 | . . 2 . . . Swarmer 13 | . . 9 4 . . Grunt 1 | . 1 . . . . Subdweller 2 | . . . 2 . . Best Kill Streak 3 | . 1 3 3 . . Combat Bots Only 3 | . 1 3 3 . . Max Kills in Single Turn 2 | . 1 2 1 . . Gunslinging 1 | . . 1 . . . Exploded . | . . . . . . Melee . | . . . . . . Uniques/NPCs Destroyed 1 | . . 1 . . . YI-UF0 (-10/Mines) Combat | -11 -10 -10 -10 -8 -8 -------- Run | Yrd Mat Min Sub Rec Scr Hostile Shots Fired 170 | . 12 55 95 . 8 Missed 79 | . 4 23 47 . 5 Hits 91 | . 8 32 48 . 3 Melee 2 | . . . . . 2 Projectile 89 | . 8 32 48 . 1 AOE 6 | . . 6 . . . Critical Strikes 1 | . . . 1 . . Damage Taken 1238 | . 85 374 750 . 29 Core 264 | . . 48 195 . 21 Absorbed by Shields . | . . . . . . Core Remaining (%) 100 | 100 . . . . . Volleys Fired 72 | . 8 36 28 . . Largest 2 | . 2 2 2 . . Hottest 124 | . 40 100 124 . . Shots Fired 118 | . 16 67 35 . . Gun 94 | . 16 62 16 . . Cannon 9 | . . . 9 . . Launcher . | . . . . . . Special 15 | . . 5 10 . . Kinetic 94 | . 16 62 16 . . Thermal 24 | . . 5 19 . . Explosive . | . . . . . . Electromagnetic . | . . . . . . Robot Hit Streak 15 | . 14 15 8 . . Robot Miss Streak 10 | . . 10 4 . . Penetration Max . | . . . . . . Secondary Targets 3 | . . 3 . . . Max Gunslinging Chain 1 | . . 1 . . . Shots Hit Robots 60 | . 14 30 16 . . Core Hits 25 | . 3 17 5 . . Critical Kills 1 | . . . 1 . . Critical Parts Destroyed . | . . . . . . Critical Strikes 1 | . . . 1 . . Meltdown 1 | . . . 1 . . Melee Attacks . | . . . . . . Impact . | . . . . . . Slashing . | . . . . . . Piercing . | . . . . . . Sneak Attacks . | . . . . . . Combat Hostiles . | . . . . . . Follow-up Attacks . | . . . . . . Damage Inflicted 820 | . 142 380 298 . . Guns 622 | . 136 380 106 . . Cannons 192 | . . . 192 . . Explosions . | . . . . . . Melee . | . . . . . . Ramming 6 | . 6 . . . . Kinetic 622 | . 136 380 106 . . Thermal 192 | . . . 192 . . Explosive . | . . . . . . Electromagnetic . | . . . . . . Impact . | . . . . . . Slashing . | . . . . . . Piercing . | . . . . . . Highest Corruption . | . . . . . . Average Corruption . | . . . . . . Corruption Purged . | . . . . . . Corruption Blocked . | . . . . . . Overload Shots . | . . . . . . Overflow Damage . | . . . . . . Projectiles . | . . . . . . Explosions . | . . . . . . Melee . | . . . . . . Knockbacks . | . . . . . . Impact . | . . . . . . Kinetic . | . . . . . . Secondary . | . . . . . . Self-Inflicted Damage . | . . . . . . Shots . | . . . . . . Rammed . | . . . . . . Targets Rammed 3 | . 3 . . . . Kicked 3 | . 3 . . . . Crushed . | . . . . . . Highest Temperature 219 | . 6 64 219 . . Average Temperature 25 | . 6 16 84 . . Received Heat Transfer 508 | . 48 . 454 . 6 Siege Activations . | . . . . . . Martial Activations . | . . . . . . Shielding Activations . | . . . . . . Robots Disrupted . | . . . . . . Combat Hostiles . | . . . . . . Robots Corrupted . | . . . . . . Combat Hostiles . | . . . . . . Parts Fried . | . . . . . . Impact Corruptions . | . . . . . . Robots Melted 1 | . . . 1 . . Combat Hostiles 1 | . . . 1 . . Parts Melted 2 | . . . 2 . . Heat Transferred 259 | . . . 259 . . Parts Sabotaged . | . . . . . . Parts Stolen 2 | . . . . . 2 Parts Stripped . | . . . . . . Power Chain Reactions . | . . . . . . Alert | -11 -10 -10 -10 -8 -8 ------- Run | Yrd Mat Min Sub Rec Scr Maximum Alert Level . | . . . . . . Low Security (%) 100 | 100 100 100 . 100 . Level 1 . | . . . . . . Level 2 . | . . . . . . Level 3 . | . . . . . . Level 4 . | . . . . . . Level 5 . | . . . . . . High Security . | . . . . . . Max Security . | . . . . . . Peak Influence 74 | . 60 74 . 36 . Initial 26 | . . 19 . 26 . Average 12 | . 10 18 . 3 . Influence Increases 535 | . 80 235 210 10 . Destroy 0b10 Robot/C 280 | . 20 180 80 . . Destroy 0b10 Robot/NC 25 | . . 25 . . . Destroy Leader 40 | . . 30 10 . . Successful Hack 10 | . . . . 10 . Partial Spotted 30 | . 30 . . . . Lose Combat Pursuer 150 | . 30 . 120 . . Influence Decreases 535 | . 30 249 190 66 . Entered New Map 81 | . . 31 20 30 . Time Decay 404 | . 30 188 150 36 . Lost Part 30 | . . 10 20 . . Lost Ally 20 | . . 20 . . . Squads Dispatched 1 | . 1 . . . . Investigation . | . . . . . . Extermination . | . . . . . . Reinforcement 1 | . 1 . . . . Assault . | . . . . . . Garrison . | . . . . . . Intercept . | . . . . . . Searches Triggered . | . . . . . . Construction Impeded . | . . . . . . Haulers Reinforced . | . . . . . . Active Scanning Responses . | . . . . . . Cargo Convoy Interrupts . | . . . . . . Stealth | -11 -10 -10 -10 -8 -8 --------- Run | Yrd Mat Min Sub Rec Scr Distress Signals . | . . . . . . Communications Jammed . | . . . . . . Distress Signals . | . . . . . . Times Spotted 40 | . 9 13 14 . 4 Peak Tracking Total 4 | . 4 3 3 . 4 Tactical Retreats 5 | . 1 . 4 . . Traps | -11 -10 -10 -10 -8 -8 ------- Run | Yrd Mat Min Sub Rec Scr Traps Triggered 1 | . . . 1 . . Indirectly . | . . . . . . Trap Hack Attempts . | . . . . . . Triggered . | . . . . . . Disarmed . | . . . . . . Reprogrammed 1 | . 1 . . . . Reused . | . . . . . . Traps Extracted . | . . . . . . Installed . | . . . . . . Triggered . | . . . . . . Machines | -11 -10 -10 -10 -8 -8 ---------- Run | Yrd Mat Min Sub Rec Scr Machines Disabled . | . . . . . . Max in Single Turn . | . . . . . . Machines Repaired . | . . . . . . Machines Dismantled . | . . . . . . Machines Sabotaged . | . . . . . . Overloaded Fab Kills . | . . . . . . Hacking | -11 -10 -10 -10 -8 -8 --------- Run | Yrd Mat Min Sub Rec Scr Machines Accessed 15 | . 3 . . 7 5 Terminals 8 | . 3 . . 5 . Fabricators . | . . . . . . Repair Stations . | . . . . . . Recycling Units . | . . . . . . Scanalyzers . | . . . . . . Garrison Access . | . . . . . . Total Hacks 72 | . 8 . . 34 30 Successful 64 | . 4 . . 30 30 Failed 8 | . 4 . . 4 . Catastrophic 2 | . 2 . . . . Database Lockouts . | . . . . . . Manual 3 | . 3 . . . . Terminals 17 | . 8 . . 9 . Fabricators . | . . . . . . Repair Stations . | . . . . . . Recycling Units . | . . . . . . Scanalyzers . | . . . . . . Garrison Access . | . . . . . . Terminal Hacks 64 | . 4 . . 30 30 Record 53 | . . . . 24 29 Alert Level 1 | . . . . 1 . Reprogram Traps 2 | . 2 . . . . Hauler Manifests 2 | . 1 . . 1 . Zone Layout 4 | . 1 . . 3 . Proto ID Catalog 1 | . . . . . 1 Release Object 1 | . . . . 1 . Fabricator Hacks . | . . . . . . Repair Station Hacks . | . . . . . . Recycling Unit Hacks . | . . . . . . Scanalyzer . | . . . . . . Garrison Access Hacks . | . . . . . . Unauthorized Hacks . | . . . . . . Terminals . | . . . . . . Fabricators . | . . . . . . Repair Stations . | . . . . . . Recycling Units . | . . . . . . Scanalyzers . | . . . . . . Garrison Access . | . . . . . . Data Cores Recovered . | . . . . . . Used . | . . . . . . Hacking Detections 5 | . 3 . . 2 . Full Trace Events 1 | . 1 . . . . Feedback Events . | . . . . . . Feedback Blocked . | . . . . . . Robot Schematics Acquired . | . . . . . . Robots Built . | . . . . . . Authchips . | . . . . . . Time . | . . . . . . Total Robot Build Rating . | . . . . . . Part Schematics Acquired . | . . . . . . Parts Built . | . . . . . . Authchips . | . . . . . . Time . | . . . . . . Total Part Build Rating . | . . . . . . Part Studies Acquired . | . . . . . . Parts Repaired . | . . . . . . Time . | . . . . . . Parts Recycled . | . . . . . . Recycled Matter . | . . . . . . Retrieved Matter . | . . . . . . Retrieved Components . | . . . . . . Parts Scanalyzed . | . . . . . . Part Schematics Acquired . | . . . . . . Parts Damaged . | . . . . . . Bothacking | -11 -10 -10 -10 -8 -8 ------------ Run | Yrd Mat Min Sub Rec Scr Used RIF Installer . | . . . . . . Robots Hacked . | . . . . . . Non-combat . | . . . . . . Combat . | . . . . . . Robot Hacks Applied . | . . . . . . Relay Couplers Released . | . . . . . . Fabnet Peak Effective % . | . . . . . . Robots Rewired . | . . . . . . Allies Hacked . | . . . . . . Hacks Repelled . | . . . . . . Allies | -11 -10 -10 -10 -8 -8 -------- Run | Yrd Mat Min Sub Rec Scr Total Allies 1 | . . 1 . . . Largest Group 1 | . . 1 . . . Highest-Rated Group 31 | . . 31 . . . Highest-Rated Ally 31 | . . 31 . . . Total Orders . | . . . . . . Ally Attacks 2 | . . 2 . . . Total Damage 43 | . . 43 . . . Kills . | . . . . . . Allies Corrupted . | . . . . . . Allies Melted . | . . . . . . Intel | -11 -10 -10 -10 -8 -8 ------- Run | Yrd Mat Min Sub Rec Scr Active Infowar (turns) 925 | . . 77 611 131 106 Terrain 925 | . . 77 611 131 106 Robot Analysis Total . | . . . . . . Derelict Logs Recovered 3 | . . 1 2 . . Drone Launches . | . . . . . . Drone Recoveries . | . . . . . . Exploration | -11 -10 -10 -10 -8 -8 ------------- Run | Yrd Mat Min Sub Rec Scr Turns Passed 4058 | 365 179 1451 771 436 856 Spaces Moved 5039 | 76 123 914 754 894 2278 Core 2 | 1 . 1 . . . Treads . | . . . . . . Legs 1460 | . 118 913 429 . . Wheels 80 | 75 5 . . . . Hover . | . . . . . . Flight 3497 | . . . 325 894 2278 Fastest Speed 37 | 50 80 120 37 37 37 Average Speed 61 | 79 118 120 85 37 37 Slowest Speed 200 | 80 120 200 190 37 37 Overloaded Moves . | . . . . . . Propulsion Burnouts . | . . . . . . Robots Hopped 16 | . . . . 4 12 Potential Cave-ins . | . . . . . . Cave-ins Triggered . | . . . . . . Exploration Rate (%) 58 | 3 23 96 34 97 96 Regions Visited 5 Branch Regions 4 Pre-discovered Areas . | . . . . . . Known Exits Taken . | . . . . . . Unknown Exits Taken 5 | 1 1 1 1 1 . Scrap Searched 8 | . . 1 . . 7 Spaces Dug . | . . . . . . Terrain Destroyed . | . . . . . . Melee . | . . . . . . Projectile . | . . . . . . AOE . | . . . . . . Terrain Rammed . | . . . . . . Walls Destroyed . | . . . . . . Machines Disabled . | . . . . . . Actions | -11 -10 -10 -10 -8 -8 --------- Run | Yrd Mat Min Sub Rec Scr Total 5813 | 377 142 1195 825 995 2279 Wait 642 | 292 1 226 22 101 . Move 5008 | 75 122 913 753 885 2260 Hop 10 | . . . . 4 6 Pick Up 22 | 4 2 7 4 2 3 Fast Attach 18 | 6 2 4 2 1 3 Attach 8 | . . . 7 . 1 Detach 3 | . . . 3 . . Swap 6 | . . 3 2 . 1 Drop 21 | . 4 6 4 2 5 Fire 72 | . 8 36 28 . . Melee . | . . . . . . Ram . | . . . . . . Kick 3 | . 3 . . . . Crush . | . . . . . . Escape Stasis . | . . . . . . Rewire . | . . . . . . Trap . | . . . . . . Miscellaneous . | . . . . . . Route ------- -11/Scrapyard -10/Materials -10/Mines (discovered 3 exits: [*Mat x2] / [*Sub]) -10/Subcaves -8/Recycling (discovered 2 exits: [*Fac] / *Scr) -8/Scraptown (discovered 2 exits: [*Fac x2]) History --------- Turn | Location | Event 14 | -11/Scrapyard | Discovered new exit (range 16) 366 | -11/Scrapyard | Entered Materials 367 | -10/Materials | Build established: Mutant 450 | -10/Materials | Discovered new exit (range 8) 545 | -10/Materials | Entered Mines 555 | -10/Mines | Assembled infested the area 613 | -10/Mines | Escorted by a lone wolf Derelict 696 | -10/Mines | Met a Derelict bent on vengeance 731 | -10/Mines | Destroyed YI-UF0 1061 | -10/Mines | Discovered new exit (range 14) 1064 | -10/Mines | Found a Scrap Suit stashed away for nefarious purposes 1442 | -10/Mines | Learned location of 1 exit from Materials 1472 | -10/Mines | A weapon hastily lodged in a ceiling crevice suddenly fell to the ground 1491 | -10/Mines | Discovered new exit (range 14) 1984 | -10/Mines | Discovered new exit (range 4) 1996 | -10/Mines | Entered Subcaves 1997 | -10/Subcaves | Approached by a straggling Scientist 2002 | -10/Subcaves | Learned Materials terminal intel 2017 | -10/Subcaves | Learned Materials terminal intel 2283 | -10/Subcaves | Shifting Twisted Machinery released Sub. Beam Cannon 2301 | -10/Subcaves | Shifting Twisted Machinery released Multitool 2450 | -10/Subcaves | Discovered new exit (range 15) 2536 | -10/Subcaves | A Subdweller sparked back to life 2536 | -10/Subcaves | A Subdweller sparked back to life 2574 | -10/Subcaves | Lost 3 parts (1p2n) 2582 | -10/Subcaves | Core integrity fell below 50% 2600 | -10/Subcaves | Found Prototype Flight Unit 2655 | -10/Subcaves | Lost 4 parts (1p1n2w) 2727 | -10/Subcaves | Core integrity fell below 20% 2767 | -10/Subcaves | Entered Recycling 2768 | -8/Recycling | Met a Zionite searching for Scraptown 2858 | -8/Recycling | Discovered new exit (range 11) 3184 | -8/Recycling | Scanned before Scraplab entrance 3190 | -8/Recycling | Entered Scraplab 3196 | -8/Recycling | Discovered new exit (range 3) 3203 | -8/Recycling | Entered Scraptown 3301 | -8/Scraptown | Visited Bundlers 3329 | -8/Scraptown | Visited Red Mages 3427 | -8/Scraptown | Discovered new exit (range 5) 3460 | -8/Scraptown | Visited Symbiants 3467 | -8/Scraptown | Visited Spacefarers 3491 | -8/Scraptown | Visited Awakened 3676 | -8/Scraptown | Visited UFD Registry 3676 | -8/Scraptown | Registered with UFD as "Steamtalker" 3690 | -8/Scraptown | Visited Shadow of the Wyrm 3700 | -8/Scraptown | Visited Assassins FH 3736 | -8/Scraptown | Visited Scrapoid Research Area 3746 | -8/Scraptown | Visited Junk Repository 3763 | -8/Scraptown | Visited Chapter 10 3777 | -8/Scraptown | Visited Supply Room 3788 | -8/Scraptown | Visited Scrap Suit Storage 3801 | -8/Scraptown | Visited Science Guys 3818 | -8/Scraptown | Visited Abandonware Association 3822 | -8/Scraptown | Learned abandonware demo "OVRCLOCK.EXE" 3830 | -8/Scraptown | Learned abandonware demo "SHUTEYE.EXE" 3830 | -8/Scraptown | Learned abandonware demo "ERRANTS.EXE" 3841 | -8/Scraptown | Visited Derelict Rescue Squad 3846 | -8/Scraptown | Found DRS Beacon 3857 | -8/Scraptown | Visited Botcube Research 3862 | -8/Scraptown | Found Botcube 3962 | -8/Scraptown | Visited LU-1G1's Boring Crew 4006 | -8/Scraptown | Discovered new exit (range 3) 4027 | -8/Scraptown | Met Optimus 4027 | -8/Scraptown | Accepted into 0bPrime 4056 | -8/Scraptown | Civil war broke out across Scraptown 4059 | -8/Scraptown | Destroyed by GX-KYV(E) with Gauss Rifle Last Messages --------------- 04056_ ANNOUNCEMENT: Evidence is being transmitted to you now... 04056_ ANNOUNCEMENT: This news will hit some of you hard, but given the circumstances we have no choice but to apprehend Optimus and allies. 04056_ 0BP_ANNOUNCE: There is another choice, join 0bPrime! Our vision ensures independence and glory for all Derelicts! 04056_ ANNOUNCEMENT: Sever that connection! 04056_ 0BP_ANNOUNCE: We are one. To vict-- 04056_ ANNOUNCEMENT: Reinforcements are on the way. Do not resist and we may be able to reach an agreement. 04056_ Flight Unit ripped off. 04056_ 9H-WGH(g) destroyed. 04056_ Slug penetrates Wall. 04057_ AY-UFJ(r) follow-up attacks with Ripteeth. 04057_ Mni. Grenade Launcher ripped off. 04058_ Acquired 10 matter. 04059_ Penetrated by Slug. [Achievement: This Is Interesting...] Map ----- +----------------------------------------------------+ | | | | | | | ?????????????????????????????????????????????????? | | ?????????????????????????????????????????????????? | | ?????????????????????????????????????????????????? | | ?????????????????????????????????????????????????? | | ?????????????????????????????????????????????????? | | ?????????????????????????????????????????????????? | | ?????????????????????????????????????????????????? | | ?????????????????????????????????????????????????? | | ?????????????????????????????????????????????????? | | ?????????????????????????????????????????????????? | | ?????????????????????????????????????????????????? | | ????????????????????????????????#####????????????? | | ????????????????????????????????#"""#????????????? | | ?###################???####?????#" "#????????????? | | ?"""##"""##""|##"""#??##EE##????# < #????????????? | | #"" ##"" ##"" ##!!"#### ###### ##???????????? | | #"" #???????????? | | # #???????????? | | ####################### r ###########???????????? | | ??????????????????????#; ;#?????????????????????? | | ???????????????????????# #??????????????????????? | | ????????????############ ############???????????? | | ????????????#""""""""""# @## # # #???????????? | | ?????????????## " # =## # """ # #???????????? | | ?????????????# ""#r ## # "#" # #???????????? | | ?????????????# ""# ## # """ # #???????????? | | ??############ """"# ## #???????????? | | ??#!!#]]!#/!## " ""# ## ####### #???????????? | | ??#]!#]![#[*## """"# ## #? # #???????????? | | ??# # # ## ""# ## # # #???????????? | | ??# ### "# ## # # #???????????? | | ??# # # ## #???????????? | | ??#### ########### ##### ## #########???????????? | | ###### ########### ##### g"# ##??????????????????? | | """""" """"""""""" """"" " "########???????????? | | "##""]]]????????????? | | "## ""?#??????????? | | "## "" #??????????? | | "## #??????????? | | " "???????????? | | """""""""""""""""""""""" "## "" "???????????? | | """""""""""""""""""""""" "## ""???????????? | | #### ################"" "## " ???????????? | | ##????????#"" "##########?????????? | | X"#????????#"" "## #"""""#?????????? | | "" "" ##????????#"" "## !!!!!#?????????? | | "" "" X"#??????###"" "## ##"#??????? | +----------------------------------------------------+ Best States ------------- Heat Dissipation 25 Energy Generation 12 Energy Capacity 265 Matter Stores 300 Matter Capacity 300 Sight Range 16 Terrain Scan Range 16 Terrain Scan Density 10 Armor Coverage 150 Evasion (%) 62 Item Schematics ----------------- None Robot Schematics ------------------ None Fabricated ------------ Nothing Repaired ---------- Nothing Studied --------- None Alien Tech Used ----------------- None Achievements -------------- This Is Interesting... You May Approach The Wall Challenges ------------ None Game ------ Seed BiometalPlasmaLoader Manual? 0 Play Time 01:07:19 Cumulative 11.7 hours Start 2026.08.11 @ 22:14:35 End 2026.08.11 @ 23:22:13 Sessions 1 Manual Loads 0 Difficulty Rogue Special Mode None Game No. 12 Rogue 12 Adventurer 0 Explorer 0 Win Type - Total 0 Types 0/0/0/0/0/0/0/0/0/0 Lore% 27 Gallery% 16 Achievement% 17 Wizard Run 0 Options --------- Layout 1 ASCII 0 Keyboard 1 Movement Vi Keybinds 0 Fullscreen 2 Font 28/SmallcapsGlow Map View 59x39 Zoom Use 0% Tactical HUD 1 Map Filters NONE Filters NONE Steam 0 RUN: a22e094e-9371-4106-b986-171d8bbd7b6a